[Event "Titled Tuesday Blitz April 11 Late 2023"]
[White "Stanisz, Patryk"]
[Black "Vifleemskaia, Svetlana"]
[WhiteFideId "1123106"]
[BlackFideId "4129490"]
[WhiteElo "2069"]
[BlackElo "1930"]
[Result "0-1"]
[Round "09"]
[TimeControl "180+2"]
[Date "2023.04.11"]
[WhiteClock "0:00:05"]
[BlackClock "0:00:39"]

1. d4 {[%clk 0:03:00]}  Nf6 {[%clk 0:02:58]} 2. c4 {[%clk 0:03:01]}  e6 {[%clk 0:02:58]} 3. Nc3 {[%clk 0:03:01]}  Bb4 {[%clk 0:02:57]} 4. e3 {[%clk 0:03:01]}  O-O {[%clk 0:02:57]} 5. Ne2 {[%clk 0:03:01]}  d6 {[%clk 0:02:55]} 6. a3 {[%clk 0:03:02]}  Bxc3+ {[%clk 0:02:54]} 7. Nxc3 {[%clk 0:03:03]}  e5 {[%clk 0:02:54]} 8. dxe5 {[%clk 0:02:55]}  dxe5 {[%clk 0:02:53]} 9. Qxd8 {[%clk 0:02:56]}  Rxd8 {[%clk 0:02:54]} 10. Be2 {[%clk 0:02:44]}  c6 {[%clk 0:02:54]} 11. b4 {[%clk 0:02:41]}  a5 {[%clk 0:02:53]} 12. Bb2 {[%clk 0:02:37]}  axb4 {[%clk 0:02:51]} 13. axb4 {[%clk 0:02:38]}  Rxa1+ {[%clk 0:02:48]} 14. Bxa1 {[%clk 0:02:38]}  Na6 {[%clk 0:02:48]} 15. b5 {[%clk 0:02:38]}  Nc5 {[%clk 0:02:30]} 16. O-O {[%clk 0:02:10]}  Bf5 {[%clk 0:02:30]} 17. Bb2 {[%clk 0:01:43]}  Rd2 {[%clk 0:02:25]} 18. Ba3 {[%clk 0:01:43]}  Nce4 {[%clk 0:02:19]} 19. Nxe4 {[%clk 0:01:36]}  Bxe4 {[%clk 0:02:07]} 20. bxc6 {[%clk 0:01:31]}  Bxc6 {[%clk 0:02:00]} 21. Bf3 {[%clk 0:01:07]}  e4 {[%clk 0:01:56]} 22. Rd1 {[%clk 0:01:05]}  Ra2 {[%clk 0:01:36]} 23. Bxe4 {[%clk 0:00:59]}  Be8 {[%clk 0:01:20]} 24. Bxb7 {[%clk 0:00:28]}  Rxa3 {[%clk 0:01:19]} 25. c5 {[%clk 0:00:25]}  Rc3 {[%clk 0:01:15]} 26. h3 {[%clk 0:00:25]}  Rxc5 {[%clk 0:01:14]} 27. Rd8 {[%clk 0:00:26]}  Kf8 {[%clk 0:01:13]} 28. Ra8 {[%clk 0:00:24]}  Ke7 {[%clk 0:01:12]} 29. g4 {[%clk 0:00:22]}  h6 {[%clk 0:01:11]} 30. Kg2 {[%clk 0:00:21]}  Bc6+ {[%clk 0:01:07]} 31. Bxc6 {[%clk 0:00:18]}  Rxc6 {[%clk 0:01:08]} 32. Ra7+ {[%clk 0:00:18]}  Nd7 {[%clk 0:01:06]} 33. f3 {[%clk 0:00:18]}  Rc2+ {[%clk 0:01:02]} 34. Kg3 {[%clk 0:00:18]}  Re2 {[%clk 0:01:02]} 35. e4 {[%clk 0:00:17]}  g5 {[%clk 0:00:59]} 36. Ra6 {[%clk 0:00:15]}  Nf6 {[%clk 0:00:55]} 37. e5 {[%clk 0:00:13]}  Rxe5 {[%clk 0:00:53]} 38. Ra7+ {[%clk 0:00:12]}  Kf8 {[%clk 0:00:52]} 39. Ra6 {[%clk 0:00:09]}  Kg7 {[%clk 0:00:52]} 40. Rb6 {[%clk 0:00:09]}  Nd5 {[%clk 0:00:51]} 41. Ra6 {[%clk 0:00:10]}  Nf4 {[%clk 0:00:50]} 42. Ra2 {[%clk 0:00:11]}  Re2 {[%clk 0:00:48]} 43. h4 {[%clk 0:00:05]}  Rxa2 {[%clk 0:00:45]} 44. hxg5 {[%clk 0:00:06]}  Ne6 {[%clk 0:00:39]} 45. gxh6+ {[%clk 0:00:05]} 0-1


[Site "https://www.chess.com"]

[Event "Titled Tuesday Blitz April 11 Late 2023"]
[White "Qashashvili, Alexandre"]
[Black "Oliveira, Tiago Batista"]
[WhiteFideId "13600842"]
[BlackFideId "2108291"]
[WhiteElo "2405"]
[BlackElo "1962"]
[Result "1-0"]
[Round "09"]
[TimeControl "180+2"]
[Date "2023.04.11"]
[WhiteClock "0:01:35"]
[BlackClock "0:00:11"]

1. e4 {[%clk 0:02:57]}  c5 {[%clk 0:02:57]} 2. Nc3 {[%clk 0:02:58]}  Nc6 {[%clk 0:02:53]} 3. Nf3 {[%clk 0:02:59]}  Nf6 {[%clk 0:02:46]} 4. Bc4 {[%clk 0:02:58]}  e6 {[%clk 0:02:41]} 5. d3 {[%clk 0:02:56]}  d5 {[%clk 0:02:35]} 6. exd5 {[%clk 0:02:56]}  exd5 {[%clk 0:02:35]} 7. Bb5 {[%clk 0:02:56]}  Be7 {[%clk 0:02:32]} 8. O-O {[%clk 0:02:55]}  O-O {[%clk 0:02:32]} 9. h3 {[%clk 0:02:55]}  d4 {[%clk 0:02:13]} 10. Ne4 {[%clk 0:02:53]}  Nxe4 {[%clk 0:02:09]} 11. dxe4 {[%clk 0:02:54]}  Be6 {[%clk 0:02:05]} 12. Bf4 {[%clk 0:02:45]}  Qb6 {[%clk 0:02:04]} 13. Bxc6 {[%clk 0:02:44]}  Qxc6 {[%clk 0:01:54]} 14. Re1 {[%clk 0:02:41]}  Rad8 {[%clk 0:01:29]} 15. b3 {[%clk 0:02:41]}  b5 {[%clk 0:01:24]} 16. a4 {[%clk 0:02:39]}  a6 {[%clk 0:01:20]} 17. axb5 {[%clk 0:02:39]}  axb5 {[%clk 0:01:20]} 18. Bg5 {[%clk 0:02:29]}  Rfe8 {[%clk 0:01:15]} 19. Bxe7 {[%clk 0:02:28]}  Rxe7 {[%clk 0:01:14]} 20. Ng5 {[%clk 0:02:28]}  c4 {[%clk 0:00:54]} 21. Nxe6 {[%clk 0:02:24]}  Qxe6 {[%clk 0:00:52]} 22. bxc4 {[%clk 0:02:24]}  bxc4 {[%clk 0:00:50]} 23. Qg4 {[%clk 0:02:18]}  Qxg4 {[%clk 0:00:47]} 24. hxg4 {[%clk 0:02:19]}  g5 {[%clk 0:00:36]} 25. f3 {[%clk 0:02:18]}  Kg7 {[%clk 0:00:35]} 26. Red1 {[%clk 0:02:16]}  Kf6 {[%clk 0:00:26]} 27. Ra6+ {[%clk 0:02:13]}  Re6 {[%clk 0:00:25]} 28. Ra5 {[%clk 0:02:07]}  Re5 {[%clk 0:00:24]} 29. Ra6+ {[%clk 0:02:05]}  Re6 {[%clk 0:00:23]} 30. Ra7 {[%clk 0:01:59]}  d3 {[%clk 0:00:17]} 31. cxd3 {[%clk 0:01:58]}  cxd3 {[%clk 0:00:16]} 32. Kf2 {[%clk 0:01:57]}  Rc6 {[%clk 0:00:15]} 33. Rd2 {[%clk 0:01:41]}  Rc1 {[%clk 0:00:14]} 34. Ra3 {[%clk 0:01:36]}  Rc3 {[%clk 0:00:11]} 35. Rxc3 {[%clk 0:01:35]} 1-0


[Site "https://www.chess.com"]

[Event "Titled Tuesday Blitz April 11 Late 2023"]
[White "Antonova, Nadezhda"]
[Black "Sanchez, Robert"]
[WhiteFideId "14700182"]
[BlackFideId "2034360"]
[WhiteElo "1765"]
[BlackElo "1966"]
[Result "1-0"]
[Round "09"]
[TimeControl "180+2"]
[Date "2023.04.11"]
[WhiteClock "0:02:27"]
[BlackClock "0:02:44"]

1. d4 {[%clk 0:02:59]}  Nf6 {[%clk 0:02:59]} 2. c4 {[%clk 0:03:00]}  e6 {[%clk 0:03:00]} 3. Nc3 {[%clk 0:03:00]}  Bb4 {[%clk 0:03:00]} 4. e3 {[%clk 0:02:55]}  b6 {[%clk 0:03:00]} 5. Ne2 {[%clk 0:02:55]}  Ba6 {[%clk 0:02:59]} 6. a3 {[%clk 0:02:54]}  Bxc3+ {[%clk 0:02:59]} 7. Nxc3 {[%clk 0:02:54]}  d5 {[%clk 0:02:59]} 8. b3 {[%clk 0:02:50]}  O-O {[%clk 0:02:59]} 9. Be2 {[%clk 0:02:48]}  dxc4 {[%clk 0:02:59]} 10. bxc4 {[%clk 0:02:48]}  Nc6 {[%clk 0:03:00]} 11. O-O {[%clk 0:02:48]}  Na5 {[%clk 0:03:00]} 12. c5 {[%clk 0:02:33]}  Bxe2 {[%clk 0:03:00]} 13. Qxe2 {[%clk 0:02:34]}  Nd5 {[%clk 0:02:58]} 14. Nxd5 {[%clk 0:02:32]}  Qxd5 {[%clk 0:02:58]} 15. cxb6 {[%clk 0:02:32]}  axb6 {[%clk 0:02:57]} 16. Bd2 {[%clk 0:02:32]}  Nb3 {[%clk 0:02:55]} 17. Rab1 {[%clk 0:02:31]}  Rxa3 {[%clk 0:02:54]} 18. Bb4 {[%clk 0:02:30]}  Raa8 {[%clk 0:02:46]} 19. Bxf8 {[%clk 0:02:30]}  Rxf8 {[%clk 0:02:47]} 20. Qc2 {[%clk 0:02:27]}  Na5 {[%clk 0:02:44]} 1-0


[Site "https://www.chess.com"]

[Event "Titled Tuesday Blitz April 11 Late 2023"]
[White "Vachier-Lagrave, Maxime"]
[Black "Caruana, Fabiano"]
[WhiteFideId "623539"]
[BlackFideId "2020009"]
[WhiteElo "2740"]
[BlackElo "2837"]
[Result "0-1"]
[Round "10"]
[TimeControl "180+2"]
[Date "2023.04.11"]
[WhiteClock "0:01:10"]
[BlackClock "0:00:34"]

1. e4 {[%clk 0:03:00]}  e5 {[%clk 0:03:00]} 2. Nf3 {[%clk 0:02:56]}  Nc6 {[%clk 0:03:00]} 3. Bc4 {[%clk 0:02:55]}  Nf6 {[%clk 0:03:00]} 4. d3 {[%clk 0:02:55]}  Bc5 {[%clk 0:03:01]} 5. c3 {[%clk 0:02:55]}  d6 {[%clk 0:03:01]} 6. O-O {[%clk 0:02:55]}  O-O {[%clk 0:03:00]} 7. Nbd2 {[%clk 0:02:54]}  a5 {[%clk 0:03:00]} 8. Re1 {[%clk 0:02:53]}  Be6 {[%clk 0:02:51]} 9. Bb5 {[%clk 0:02:53]}  Bb6 {[%clk 0:02:50]} 10. Nc4 {[%clk 0:02:45]}  Bc5 {[%clk 0:02:43]} 11. Ne3 {[%clk 0:02:39]}  Bb6 {[%clk 0:02:42]} 12. Ng5 {[%clk 0:02:33]}  Bd7 {[%clk 0:02:40]} 13. Ba4 {[%clk 0:02:27]}  h6 {[%clk 0:02:35]} 14. Nf3 {[%clk 0:02:27]}  Re8 {[%clk 0:02:25]} 15. h3 {[%clk 0:02:25]}  Ba7 {[%clk 0:02:12]} 16. Bc2 {[%clk 0:02:14]}  Ne7 {[%clk 0:02:09]} 17. d4 {[%clk 0:02:11]}  Ng6 {[%clk 0:02:09]} 18. Nf5 {[%clk 0:02:10]}  exd4 {[%clk 0:02:02]} 19. cxd4 {[%clk 0:02:10]}  Bxf5 {[%clk 0:02:01]} 20. exf5 {[%clk 0:02:11]}  Rxe1+ {[%clk 0:01:55]} 21. Qxe1 {[%clk 0:02:12]}  Ne7 {[%clk 0:01:55]} 22. Bd2 {[%clk 0:02:10]}  Bb6 {[%clk 0:01:54]} 23. Qe2 {[%clk 0:02:04]}  Qd7 {[%clk 0:01:53]} 24. g4 {[%clk 0:02:03]}  Nc6 {[%clk 0:01:52]} 25. Be3 {[%clk 0:01:55]}  Nb4 {[%clk 0:01:51]} 26. a3 {[%clk 0:01:46]}  Nxc2 {[%clk 0:01:50]} 27. Qxc2 {[%clk 0:01:47]}  Re8 {[%clk 0:01:49]} 28. Kg2 {[%clk 0:01:44]}  Qb5 {[%clk 0:01:49]} 29. a4 {[%clk 0:01:43]}  Qd5 {[%clk 0:01:48]} 30. Rc1 {[%clk 0:01:39]}  h5 {[%clk 0:01:24]} 31. Kg3 {[%clk 0:01:37]}  hxg4 {[%clk 0:01:11]} 32. hxg4 {[%clk 0:01:38]}  Re4 {[%clk 0:01:11]} 33. Nh2 {[%clk 0:01:38]}  Bxd4 {[%clk 0:01:04]} 34. Bxd4 {[%clk 0:01:39]}  Rxd4 {[%clk 0:01:04]} 35. Qxc7 {[%clk 0:01:33]}  Ne4+ {[%clk 0:01:04]} 36. Kh4 {[%clk 0:01:34]}  g5+ {[%clk 0:00:55]} 37. fxg6 {[%clk 0:01:20]}  Qg5+ {[%clk 0:00:55]} 38. Kh3 {[%clk 0:01:21]}  Qxg6 {[%clk 0:00:52]} 39. Kg2 {[%clk 0:01:15]}  Nf6 {[%clk 0:00:35]} 40. Rc4 {[%clk 0:01:09]}  Qe4+ {[%clk 0:00:34]} 41. f3 {[%clk 0:01:10]}  Qe2+ {[%clk 0:00:34]} 0-1


[Site "https://www.chess.com"]

[Event "Titled Tuesday Blitz April 11 Late 2023"]
[White "Kollars, Dmitrij"]
[Black "Nakamura, Hikaru"]
[WhiteFideId "12909572"]
[BlackFideId "2016192"]
[WhiteElo "2584"]
[BlackElo "2885"]
[Result "1-0"]
[Round "10"]
[TimeControl "180+2"]
[Date "2023.04.11"]
[WhiteClock "0:00:13"]
[BlackClock "0:00:10"]

1. e4 {[%clk 0:03:00]}  e5 {[%clk 0:02:59]} 2. Nf3 {[%clk 0:03:00]}  Nc6 {[%clk 0:02:59]} 3. Bc4 {[%clk 0:02:57]}  Nf6 {[%clk 0:02:59]} 4. d3 {[%clk 0:02:57]}  Bc5 {[%clk 0:02:59]} 5. Nc3 {[%clk 0:02:57]}  h6 {[%clk 0:02:59]} 6. h3 {[%clk 0:02:55]}  a6 {[%clk 0:02:55]} 7. Be3 {[%clk 0:02:49]}  d6 {[%clk 0:02:54]} 8. Bxc5 {[%clk 0:02:48]}  dxc5 {[%clk 0:02:55]} 9. a4 {[%clk 0:02:48]}  Qd6 {[%clk 0:02:54]} 10. O-O {[%clk 0:02:48]}  O-O {[%clk 0:02:54]} 11. Nd2 {[%clk 0:02:46]}  Nd4 {[%clk 0:02:51]} 12. Nd5 {[%clk 0:02:42]}  Nh7 {[%clk 0:02:44]} 13. Ne3 {[%clk 0:02:36]}  a5 {[%clk 0:02:39]} 14. Bd5 {[%clk 0:02:30]}  c6 {[%clk 0:02:36]} 15. Ba2 {[%clk 0:02:25]}  g6 {[%clk 0:02:25]} 16. c3 {[%clk 0:01:51]}  Ne6 {[%clk 0:02:25]} 17. Ndc4 {[%clk 0:01:51]}  Qc7 {[%clk 0:02:25]} 18. g3 {[%clk 0:01:50]}  h5 {[%clk 0:02:22]} 19. h4 {[%clk 0:01:50]}  Kg7 {[%clk 0:02:20]} 20. Qe2 {[%clk 0:01:45]}  b6 {[%clk 0:02:19]} 21. Rad1 {[%clk 0:01:37]}  Nf6 {[%clk 0:02:14]} 22. Ng2 {[%clk 0:01:28]}  Nd8 {[%clk 0:02:12]} 23. Qe3 {[%clk 0:01:18]}  Bh3 {[%clk 0:02:09]} 24. Qg5 {[%clk 0:01:08]}  Ng4 {[%clk 0:01:51]} 25. f3 {[%clk 0:01:03]}  Ne6 {[%clk 0:01:42]} 26. Qd2 {[%clk 0:01:02]}  Nf6 {[%clk 0:01:42]} 27. Kh2 {[%clk 0:00:58]}  Bxg2 {[%clk 0:01:42]} 28. Kxg2 {[%clk 0:00:59]}  Rad8 {[%clk 0:01:41]} 29. Qf2 {[%clk 0:00:58]}  Rd7 {[%clk 0:01:37]} 30. Ne3 {[%clk 0:00:56]}  Rfd8 {[%clk 0:01:35]} 31. Qe2 {[%clk 0:00:53]}  Re8 {[%clk 0:01:21]} 32. Rd2 {[%clk 0:00:50]}  Rdd8 {[%clk 0:01:16]} 33. Rfd1 {[%clk 0:00:49]}  Qe7 {[%clk 0:00:59]} 34. Nc4 {[%clk 0:00:48]}  Nd7 {[%clk 0:00:58]} 35. Qf2 {[%clk 0:00:40]}  Qf6 {[%clk 0:00:55]} 36. Kh2 {[%clk 0:00:36]}  Rb8 {[%clk 0:00:53]} 37. Nd6 {[%clk 0:00:31]}  Red8 {[%clk 0:00:53]} 38. Nc4 {[%clk 0:00:31]}  Ndf8 {[%clk 0:00:52]} 39. Ne3 {[%clk 0:00:26]}  Rd7 {[%clk 0:00:51]} 40. Bb3 {[%clk 0:00:20]}  Rdd8 {[%clk 0:00:46]} 41. Nc4 {[%clk 0:00:20]}  Kg8 {[%clk 0:00:40]} 42. Ba2 {[%clk 0:00:20]}  Kh8 {[%clk 0:00:40]} 43. Qe3 {[%clk 0:00:21]}  Kg7 {[%clk 0:00:35]} 44. Kg2 {[%clk 0:00:21]}  Nd7 {[%clk 0:00:24]} 45. Rf1 {[%clk 0:00:21]}  Ra8 {[%clk 0:00:22]} 46. Na3 {[%clk 0:00:20]}  Ndf8 {[%clk 0:00:21]} 47. Rdf2 {[%clk 0:00:19]}  Ra7 {[%clk 0:00:20]} 48. Rd2 {[%clk 0:00:17]}  Qe7 {[%clk 0:00:18]} 49. Rfd1 {[%clk 0:00:16]}  Rb7 {[%clk 0:00:17]} 50. Bc4 {[%clk 0:00:16]}  Rdb8 {[%clk 0:00:17]} 51. Ba6 {[%clk 0:00:16]}  Ra7 {[%clk 0:00:17]} 52. Bc4 {[%clk 0:00:17]}  Nc7 {[%clk 0:00:18]} 53. d4 {[%clk 0:00:17]}  b5 {[%clk 0:00:18]} 54. axb5 {[%clk 0:00:16]}  cxb5 {[%clk 0:00:19]} 55. Bf1 {[%clk 0:00:16]}  exd4 {[%clk 0:00:15]} 56. cxd4 {[%clk 0:00:17]}  Nfe6 {[%clk 0:00:15]} 57. d5 {[%clk 0:00:16]}  Nd4 {[%clk 0:00:16]} 58. Rxd4 {[%clk 0:00:16]}  cxd4 {[%clk 0:00:16]} 59. Qxd4+ {[%clk 0:00:17]}  Qf6 {[%clk 0:00:17]} 60. Qxa7 {[%clk 0:00:16]}  Qxb2+ {[%clk 0:00:18]} 61. Kg1 {[%clk 0:00:15]}  Rc8 {[%clk 0:00:17]} 62. Qe3 {[%clk 0:00:14]}  a4 {[%clk 0:00:11]} 63. Qd4+ {[%clk 0:00:14]}  Qxd4+ {[%clk 0:00:11]} 64. Rxd4 {[%clk 0:00:15]}  Na6 {[%clk 0:00:11]} 65. Bxb5 {[%clk 0:00:14]}  Rc1+ {[%clk 0:00:12]} 66. Kf2 {[%clk 0:00:13]}  Nc5 {[%clk 0:00:13]} 67. Rc4 {[%clk 0:00:14]}  Nd3+ {[%clk 0:00:10]} 68. Ke3 {[%clk 0:00:14]}  Ra1 {[%clk 0:00:11]} 69. Kxd3 {[%clk 0:00:14]}  Rxa3+ {[%clk 0:00:12]} 70. Rc3 {[%clk 0:00:12]}  Ra1 {[%clk 0:00:12]} 71. Rc2 {[%clk 0:00:11]}  a3 {[%clk 0:00:13]} 72. Bc4 {[%clk 0:00:12]}  Kf6 {[%clk 0:00:12]} 73. d6 {[%clk 0:00:12]}  Rd1+ {[%clk 0:00:12]} 74. Rd2 {[%clk 0:00:12]}  Rc1 {[%clk 0:00:08]} 75. f4 {[%clk 0:00:12]}  Kg7 {[%clk 0:00:08]} 76. e5 {[%clk 0:00:13]}  Kf8 {[%clk 0:00:08]} 77. Ra2 {[%clk 0:00:12]}  Rd1+ {[%clk 0:00:08]} 78. Kc3 {[%clk 0:00:13]}  Rc1+ {[%clk 0:00:09]} 79. Kb4 {[%clk 0:00:13]}  Rg1 {[%clk 0:00:10]} 80. Rxa3 {[%clk 0:00:13]} 1-0


[Site "https://www.chess.com"]

[Event "Titled Tuesday Blitz April 11 Late 2023"]
[White "Kramnik, Vladimir"]
[Black "Kamsky, Gata"]
[WhiteFideId "4101588"]
[BlackFideId "2000024"]
[WhiteElo "2712"]
[BlackElo "2660"]
[Result "1-0"]
[Round "10"]
[TimeControl "180+2"]
[Date "2023.04.11"]
[WhiteClock "0:00:05"]
[BlackClock "0:00:04"]

1. e4 {[%clk 0:03:00]}  c5 {[%clk 0:02:55]} 2. Nf3 {[%clk 0:03:00]}  e6 {[%clk 0:02:55]} 3. d4 {[%clk 0:02:57]}  cxd4 {[%clk 0:02:56]} 4. Nxd4 {[%clk 0:02:57]}  a6 {[%clk 0:02:56]} 5. Bd3 {[%clk 0:02:55]}  Bc5 {[%clk 0:02:53]} 6. Nb3 {[%clk 0:02:53]}  Ba7 {[%clk 0:02:53]} 7. Nc3 {[%clk 0:02:47]}  Ne7 {[%clk 0:02:40]} 8. Qe2 {[%clk 0:02:37]}  d6 {[%clk 0:02:28]} 9. Be3 {[%clk 0:02:36]}  b5 {[%clk 0:02:25]} 10. f4 {[%clk 0:02:26]}  b4 {[%clk 0:02:22]} 11. Bxa7 {[%clk 0:02:22]}  Rxa7 {[%clk 0:02:22]} 12. Qe3 {[%clk 0:02:20]}  Nbc6 {[%clk 0:02:17]} 13. Na4 {[%clk 0:02:18]}  O-O {[%clk 0:01:55]} 14. O-O-O {[%clk 0:02:17]}  Qc7 {[%clk 0:01:44]} 15. h4 {[%clk 0:02:01]}  Bd7 {[%clk 0:01:26]} 16. h5 {[%clk 0:01:59]}  Rb8 {[%clk 0:01:23]} 17. h6 {[%clk 0:01:54]}  g6 {[%clk 0:01:21]} 18. Qg3 {[%clk 0:01:21]}  f6 {[%clk 0:01:03]} 19. e5 {[%clk 0:01:13]}  dxe5 {[%clk 0:00:55]} 20. f5 {[%clk 0:00:59]}  e4 {[%clk 0:00:31]} 21. Qxc7 {[%clk 0:00:51]}  Rxc7 {[%clk 0:00:31]} 22. fxe6 {[%clk 0:00:48]}  exd3 {[%clk 0:00:30]} 23. exd7 {[%clk 0:00:47]}  Rxd7 {[%clk 0:00:30]} 24. Nac5 {[%clk 0:00:45]}  Rd5 {[%clk 0:00:28]} 25. Rxd3 {[%clk 0:00:43]}  Rxd3 {[%clk 0:00:28]} 26. Nxd3 {[%clk 0:00:43]}  Kf7 {[%clk 0:00:27]} 27. Nbc5 {[%clk 0:00:42]}  a5 {[%clk 0:00:26]} 28. Rf1 {[%clk 0:00:42]}  Rd8 {[%clk 0:00:26]} 29. Ne4 {[%clk 0:00:41]}  Nd5 {[%clk 0:00:20]} 30. Ng5+ {[%clk 0:00:38]}  Ke7 {[%clk 0:00:20]} 31. Re1+ {[%clk 0:00:34]}  Kd7 {[%clk 0:00:15]} 32. Nc5+ {[%clk 0:00:33]}  Kc8 {[%clk 0:00:15]} 33. Nf7 {[%clk 0:00:31]}  Rg8 {[%clk 0:00:14]} 34. Re6 {[%clk 0:00:22]}  Kc7 {[%clk 0:00:13]} 35. Rd6 {[%clk 0:00:20]}  Nce7 {[%clk 0:00:12]} 36. Ne6+ {[%clk 0:00:18]}  Kb7 {[%clk 0:00:11]} 37. a3 {[%clk 0:00:14]}  bxa3 {[%clk 0:00:10]} 38. bxa3 {[%clk 0:00:14]}  Nb6 {[%clk 0:00:09]} 39. Nfd8+ {[%clk 0:00:12]}  Ka7 {[%clk 0:00:08]} 40. c4 {[%clk 0:00:10]}  Nf5 {[%clk 0:00:08]} 41. Rc6 {[%clk 0:00:09]}  Nxh6 {[%clk 0:00:05]} 42. Rc7+ {[%clk 0:00:08]}  Ka8 {[%clk 0:00:05]} 43. c5 {[%clk 0:00:05]}  Nd5 {[%clk 0:00:04]} 44. Rxh7 {[%clk 0:00:05]}  Ng4 {[%clk 0:00:04]} 45. Nc6 {[%clk 0:00:05]} 1-0


[Site "https://www.chess.com"]

[Event "Titled Tuesday Blitz April 11 Late 2023"]
[White "Bakalchuk, Johnatan"]
[Black "Deac, Bogdan-Daniel"]
[WhiteFideId "2810301"]
[BlackFideId "1226380"]
[WhiteElo "2450"]
[BlackElo "2649"]
[Result "0-1"]
[Round "10"]
[TimeControl "180+2"]
[Date "2023.04.11"]
[WhiteClock "0:00:10"]
[BlackClock "0:00:22"]

1. e4 {[%clk 0:03:00]}  c6 {[%clk 0:03:00]} 2. d4 {[%clk 0:02:52]}  d5 {[%clk 0:03:01]} 3. exd5 {[%clk 0:02:53]}  cxd5 {[%clk 0:03:00]} 4. c4 {[%clk 0:02:54]}  Nf6 {[%clk 0:03:00]} 5. Nc3 {[%clk 0:02:55]}  e6 {[%clk 0:03:01]} 6. c5 {[%clk 0:02:52]}  a5 {[%clk 0:02:50]} 7. Nf3 {[%clk 0:02:47]}  b6 {[%clk 0:02:43]} 8. Na4 {[%clk 0:02:02]}  bxc5 {[%clk 0:02:35]} 9. dxc5 {[%clk 0:02:02]}  Bd7 {[%clk 0:02:10]} 10. Be3 {[%clk 0:01:56]}  Ra7 {[%clk 0:01:28]} 11. Be2 {[%clk 0:01:52]}  Ng4 {[%clk 0:01:14]} 12. Bd4 {[%clk 0:01:27]}  Nc6 {[%clk 0:01:14]} 13. Bc3 {[%clk 0:01:28]}  Nf6 {[%clk 0:00:56]} 14. Nd4 {[%clk 0:01:14]}  Ne4 {[%clk 0:00:51]} 15. Nb5 {[%clk 0:00:57]}  Rb7 {[%clk 0:00:46]} 16. O-O {[%clk 0:00:57]}  Nb4 {[%clk 0:00:36]} 17. Nb6 {[%clk 0:00:34]}  Bxc5 {[%clk 0:00:34]} 18. Nxd7 {[%clk 0:00:33]}  Qxd7 {[%clk 0:00:34]} 19. Nd4 {[%clk 0:00:18]}  O-O {[%clk 0:00:29]} 20. Bd3 {[%clk 0:00:15]}  Nxc3 {[%clk 0:00:23]} 21. bxc3 {[%clk 0:00:15]}  Nxd3 {[%clk 0:00:21]} 22. Qxd3 {[%clk 0:00:15]}  Rfb8 {[%clk 0:00:22]} 23. Nb3 {[%clk 0:00:10]}  Qc7 {[%clk 0:00:22]} 24. c4 {[%clk 0:00:10]}  dxc4 {[%clk 0:00:22]} 0-1


[Site "https://www.chess.com"]

[Event "Titled Tuesday Blitz April 11 Late 2023"]
[White "Bortnyk, Olexandr"]
[Black "Hansen, Eric"]
[WhiteFideId "14120828"]
[BlackFideId "2606771"]
[WhiteElo "2734"]
[BlackElo "2561"]
[Result "1-0"]
[Round "10"]
[TimeControl "180+2"]
[Date "2023.04.11"]
[WhiteClock "0:01:53"]
[BlackClock "0:00:39"]

1. d4 {[%clk 0:03:00]}  Nf6 {[%clk 0:02:51]} 2. Nc3 {[%clk 0:03:01]}  d5 {[%clk 0:02:51]} 3. Bf4 {[%clk 0:03:01]}  a6 {[%clk 0:02:51]} 4. e3 {[%clk 0:03:02]}  e6 {[%clk 0:02:51]} 5. a3 {[%clk 0:03:02]}  c5 {[%clk 0:02:50]} 6. Nf3 {[%clk 0:03:02]}  Nc6 {[%clk 0:02:50]} 7. h3 {[%clk 0:03:03]}  Bd6 {[%clk 0:02:28]} 8. dxc5 {[%clk 0:03:03]}  Bxc5 {[%clk 0:02:28]} 9. Bd3 {[%clk 0:03:03]}  Qe7 {[%clk 0:02:28]} 10. O-O {[%clk 0:02:57]}  O-O {[%clk 0:02:28]} 11. e4 {[%clk 0:02:57]}  d4 {[%clk 0:02:27]} 12. e5 {[%clk 0:02:49]}  dxc3 {[%clk 0:02:26]} 13. exf6 {[%clk 0:02:50]}  gxf6 {[%clk 0:02:26]} 14. bxc3 {[%clk 0:02:43]}  f5 {[%clk 0:02:24]} 15. Bg5 {[%clk 0:02:28]}  f6 {[%clk 0:02:19]} 16. Bh6 {[%clk 0:02:29]}  Rd8 {[%clk 0:02:19]} 17. Qe2 {[%clk 0:02:19]}  Kh8 {[%clk 0:02:12]} 18. Rfe1 {[%clk 0:02:09]}  Qf7 {[%clk 0:02:00]} 19. Bc4 {[%clk 0:02:05]}  Qg6 {[%clk 0:01:56]} 20. Bf4 {[%clk 0:01:55]}  Bd6 {[%clk 0:00:43]} 21. Nh4 {[%clk 0:01:53]}  Qg7 {[%clk 0:00:39]} 22. Bxd6 {[%clk 0:01:53]} 1-0


[Site "https://www.chess.com"]

[Event "Titled Tuesday Blitz April 11 Late 2023"]
[White "Duda, Jan-Krzysztof"]
[Black "Durarbayli, Vasif"]
[WhiteFideId "1170546"]
[BlackFideId "13402935"]
[WhiteElo "2790"]
[BlackElo "2551"]
[Result "0-1"]
[Round "10"]
[TimeControl "180+2"]
[Date "2023.04.11"]
[WhiteClock "0:00:04"]
[BlackClock "0:01:00"]

1. e4 {[%clk 0:03:00]}  e5 {[%clk 0:03:00]} 2. Nf3 {[%clk 0:03:01]}  Nc6 {[%clk 0:03:01]} 3. Bc4 {[%clk 0:03:02]}  Nf6 {[%clk 0:03:01]} 4. d3 {[%clk 0:03:01]}  h6 {[%clk 0:03:00]} 5. O-O {[%clk 0:03:00]}  d6 {[%clk 0:03:00]} 6. c3 {[%clk 0:02:59]}  g5 {[%clk 0:03:00]} 7. b4 {[%clk 0:02:51]}  Bg7 {[%clk 0:02:58]} 8. a4 {[%clk 0:02:51]}  O-O {[%clk 0:02:49]} 9. b5 {[%clk 0:02:51]}  Ne7 {[%clk 0:02:49]} 10. a5 {[%clk 0:02:50]}  Ng6 {[%clk 0:02:48]} 11. Na3 {[%clk 0:02:38]}  c6 {[%clk 0:02:40]} 12. bxc6 {[%clk 0:01:33]}  bxc6 {[%clk 0:02:40]} 13. a6 {[%clk 0:01:34]}  d5 {[%clk 0:02:37]} 14. exd5 {[%clk 0:01:34]}  cxd5 {[%clk 0:02:38]} 15. Bb5 {[%clk 0:01:34]}  Bg4 {[%clk 0:02:27]} 16. h3 {[%clk 0:01:18]}  Bh5 {[%clk 0:02:27]} 17. Nc2 {[%clk 0:00:36]}  Qb6 {[%clk 0:02:22]} 18. Rb1 {[%clk 0:00:35]}  e4 {[%clk 0:02:22]} 19. Be3 {[%clk 0:00:29]}  Qc7 {[%clk 0:02:19]} 20. dxe4 {[%clk 0:00:21]}  dxe4 {[%clk 0:02:20]} 21. g4 {[%clk 0:00:12]}  Nxg4 {[%clk 0:02:17]} 22. hxg4 {[%clk 0:00:12]}  Bxg4 {[%clk 0:02:18]} 23. Be2 {[%clk 0:00:03]}  Rad8 {[%clk 0:02:12]} 24. Nfd4 {[%clk 0:00:03]}  Bc8 {[%clk 0:02:01]} 25. Qd2 {[%clk 0:00:02]}  f5 {[%clk 0:01:56]} 26. Nb4 {[%clk 0:00:01]}  f4 {[%clk 0:01:55]} 27. Qa2+ {[%clk 0:00:02]}  Kh7 {[%clk 0:01:55]} 28. Ne6 {[%clk 0:00:02]}  Qd7 {[%clk 0:01:41]} 29. Bc4 {[%clk 0:00:01]}  fxe3 {[%clk 0:01:35]} 30. fxe3 {[%clk 0:00:02]}  Rxf1+ {[%clk 0:01:30]} 31. Rxf1 {[%clk 0:00:03]}  Re8 {[%clk 0:01:30]} 32. Bd5 {[%clk 0:00:02]}  Qd6 {[%clk 0:01:22]} 33. Rf7 {[%clk 0:00:02]}  Bxe6 {[%clk 0:01:17]} 34. Bxe6 {[%clk 0:00:02]}  Rxe6 {[%clk 0:01:18]} 35. Rxa7 {[%clk 0:00:02]}  Qg3+ {[%clk 0:01:11]} 36. Qg2 {[%clk 0:00:02]}  Qxe3+ {[%clk 0:01:12]} 37. Qf2 {[%clk 0:00:03]}  Qxf2+ {[%clk 0:01:02]} 38. Kxf2 {[%clk 0:00:04]}  e3+ {[%clk 0:01:02]} 39. Ke1 {[%clk 0:00:04]}  Nf4 {[%clk 0:01:03]} 40. Rd7 {[%clk 0:00:03]}  e2 {[%clk 0:01:01]} 41. Nc2 {[%clk 0:00:04]}  Rxa6 {[%clk 0:01:00]} 0-1


[Site "https://www.chess.com"]